lending/lending_fUSD_20241211
["ID","MTS","AMOUNT","RATE_DAILY","PERIOD"]
[344933552,1733890262813,-648.96,0.00010999,2]
[344933553,1733890262822,-500.0,0.00010999,2]
[344933554,1733890262831,-500.0,0.00010999,2]
[344933555,1733890262840,-500.0,0.00010999,2]
[344933556,1733890262850,-500.0,0.00010999,2]
[344933557,1733890262859,-800.29087015,0.00010999,2]
[344933558,1733890262868,-511.67996964,0.00010999,2]
[344933559,1733890262878,-6933.52396528,0.00010999,2]
[344933560,1733890262887,-6299.15354257,0.00010999,2]
[344933561,1733890262896,-690.2470084,0.00010999,2]
[344933562,1733890262906,-551.33395678,0.00010999,2]
[344933563,1733890262915,-3352.76298553,0.00011,2]
[344933564,1733890262924,-3352.76298553,0.00011,2]
[344933565,1733890262934,-800.29087015,0.00011,2]
[344933566,1733890262943,-6933.52396528,0.00011,2]
[344933567,1733890262956,-13097.72315652,0.00011,2]
[344933568,1733890262965,-179.10651826,0.00011,2]
[344933569,1733890262975,-84985.76437518,0.00011,2]
[344933570,1733890262984,-220.0,0.00011,2]
[344933571,1733890262993,-500.0,0.00011,2]
[344933572,1733890263003,-73555.0,0.00011,2]
[344933573,1733890263012,-5100.0,0.00011,2]
[344933574,1733890263022,-2166.0,0.00011,2]
[344933575,1733890263032,-3416.0,0.00011,2]
[344933576,1733890263041,-3416.0,0.00011,2]
[344933577,1733890263050,-3416.0,0.00011,2]
[344933578,1733890263060,-3416.0,0.00011,2]
[344933579,1733890263070,-3416.0,0.00011,2]
[344933580,1733890263080,-3416.0,0.00011,2]
[344933581,1733890263093,-3416.0,0.00011,2]
[344933582,1733890263105,-3416.0,0.00011,2]
[344933583,1733890263119,-3416.0,0.00011,2]
[344933584,1733890263140,-3416.0,0.00011,2]
[344933585,1733890263160,-138080.34504353,0.00011,2]
[344933586,1733890263170,-5003.82190316,0.00011,2]
[344933587,1733890263181,-151.0,0.00011,2]
[344933588,1733890263191,-151.0,0.00011,2]
[344933589,1733890263203,-2514.66161689,0.00011,2]
[344933590,1733890263214,-589.73,0.00011085,2]
[344933591,1733890263225,-828.48,0.00011085,2]
[344933592,1733890263235,-534.73,0.00011085,2]
[344933593,1733890263246,-500.0,0.00011085,2]
[344933594,1733890263256,-1815.2,0.00011085,2]
[344933595,1733890263269,-2896.18,0.00011085,2]
[344933596,1733890263281,-1263.39,0.00011085,2]
[344933597,1733890263291,-1899.23,0.00011085,2]
[344933598,1733890263302,-500.0,0.00011085,2]
[344933599,1733890263312,-4886.8711722,0.00011086,2]
[344933600,1733890263323,-10011.4804371,0.00011086,2]
[344933601,1733890263333,-17666.48754782,0.0001109,2]
[344933602,1733890263344,-4050.0161432,0.00011092,2]
[344933603,1733890263355,-3213.1611141,0.00011092,2]
[344933604,1733890263364,-2376.306085,0.00011092,2]
[344933605,1733890263374,-8298.8938569,0.00011092,2]
[344933606,1733890263384,-6586.3072766,0.00011092,2]
[344933607,1733890263394,-4873.7206963,0.00011092,2]
[344933608,1733890263404,-1031.11,0.00011093,2]
[344933609,1733890263414,-648.96,0.00011093,2]
[344933610,1733890263424,-500.0,0.00011094,2]
[344933611,1733890263434,-500.0,0.00011094,2]
[344933612,1733890263444,-500.0,0.00011094,2]
[344933613,1733890263458,-500.0,0.00011094,2]
[344933614,1733890263468,-676.81,0.00011094,2]
[344933615,1733890263478,-500.0,0.00011094,2]
[344933616,1733890263488,-1246.54,0.00011094,2]
[344933617,1733890263498,-952.78,0.00011094,2]
[344933618,1733890263508,-904.07,0.00011094,2]
[344933619,1733890263518,-500.0,0.00011094,2]
[344933620,1733890263529,-537.33,0.00011094,2]
[344933621,1733890263540,-500.0,0.00011094,2]
[344933622,1733890263550,-500.0,0.00011094,2]
[344933623,1733890263561,-1214.48,0.00011094,2]
[344933624,1733890263571,-500.0,0.00011094,2]
[344933625,1733890263580,-544.12,0.00011094,2]
[344933626,1733890263590,-500.0,0.00011094,2]
[344933627,1733890263600,-917.02,0.00011094,2]
[344933628,1733890263610,-500.0,0.00011094,2]
[344933629,1733890263619,-500.0,0.00011094,2]
[344933630,1733890263629,-500.0,0.00011094,2]
[344933631,1733890263639,-500.0,0.00011094,2]
[344933632,1733890263649,-500.0,0.00011094,2]
[344933633,1733890263659,-500.0,0.00011094,2]
[344933634,1733890263668,-357.16889032,0.00011094,2]
[344933635,1733890263678,-500.0,0.00011094,2]
[344933636,1733890263688,-544.66,0.00011094,2]
[344933637,1733890263698,-500.0,0.00011094,2]
[344933638,1733890263710,-409.65960286,0.00011094,2]
[344933639,1733890263720,-755.89,0.00011094,2]
[344933640,1733890263729,-500.0,0.00011094,2]
[344933641,1733890263739,-500.0,0.00011094,2]
[344933642,1733890263749,-500.0,0.00011094,2]
[344933643,1733890263759,-500.0,0.00011094,2]
[344933644,1733890263769,-500.0,0.00011094,2]
[344933645,1733890263779,-583.17,0.00011094,2]
[344933646,1733890263942,-500.0,0.00011094,2]
[344933647,1733890263953,-500.0,0.00011094,2]
[344933648,1733890263964,-681.85,0.00011094,2]
[344933649,1733890263973,-500.0,0.00011094,2]
[344933650,1733890263983,-500.0,0.00011094,2]
[344933651,1733890263992,-500.0,0.00011094,2]
[344933652,1733890264002,-665.93,0.00011094,2]
[344933653,1733890264012,-500.0,0.00011094,2]
[344933654,1733890264021,-500.0,0.00011094,2]
[344933655,1733890264030,-681.14,0.00011094,2]
[344933656,1733890264040,-639.83,0.00011094,2]
[344933657,1733890264049,-500.0,0.00011094,2]
[344933658,1733890264059,-500.0,0.00011094,2]
[344933659,1733890264068,-500.0,0.00011094,2]
[344933660,1733890264078,-1206.89,0.00011094,2]
[344933661,1733890264088,-1216.1,0.00011094,2]
[344933662,1733890264098,-500.0,0.00011094,2]
[344933663,1733890264108,-500.0,0.00011094,2]
[344933664,1733890264119,-500.0,0.00011094,2]
[344933665,1733890264128,-500.0,0.00011094,2]
[344933666,1733890264138,-500.0,0.00011094,2]
[344933667,1733890264148,-500.0,0.00011094,2]
[344933668,1733890264158,-500.0,0.00011094,2]
[344933669,1733890264168,-500.0,0.00011094,2]
[344933670,1733890264178,-500.0,0.00011094,2]
[344933671,1733890264188,-500.0,0.00011094,2]
[344933672,1733890264197,-500.0,0.00011094,2]
[344933673,1733890264209,-500.0,0.00011094,2]
[344933674,1733890264219,-500.0,0.00011094,2]
[344933675,1733890264229,-500.0,0.00011094,2]
[344933676,1733890264238,-500.0,0.00011094,2]
[344933677,1733890264249,-500.0,0.00011094,2]
[344933678,1733890264260,-500.0,0.00011094,2]
[344933679,1733890264272,-500.0,0.00011094,2]
[344933680,1733890264282,-500.0,0.00011094,2]
[344933681,1733890264291,-500.0,0.00011094,2]
[344933682,1733890264300,-500.0,0.00011094,2]
[344933683,1733890264311,-500.0,0.00011094,2]
[344933684,1733890264320,-1414.83,0.00011094,2]
[344933685,1733890264330,-500.0,0.00011094,2]
[344933686,1733890264340,-500.0,0.00011094,2]
[344933687,1733890264349,-500.0,0.00011094,2]
[344933688,1733890264359,-1162.46,0.00011094,2]
[344933689,1733890264369,-242.15095343,0.00011094,2]
[344933690,1733890264379,-500.0,0.00011094,2]
[344933691,1733890264389,-500.0,0.00011094,2]
[344933692,1733890264399,-472.64,0.00011094,2]
[344933693,1733890264409,-500.0,0.00011094,2]
[344933694,1733890264419,-500.0,0.00011094,2]
[344933695,1733890264429,-500.0,0.00011094,2]
[344933696,1733890264439,-500.0,0.00011094,2]
[344933697,1733890264449,-500.0,0.00011094,2]
[344933698,1733890264461,-500.0,0.00011094,2]
[344933699,1733890264471,-500.0,0.00011094,2]
[344933700,1733890264481,-1057.54,0.00011094,2]
[344933701,1733890264491,-500.0,0.00011094,2]
[344933702,1733890264501,-564.94,0.00011094,2]
[344933703,1733890264511,-2052.48,0.00011094,2]
[344933704,1733890264521,-152.46354149,0.00011094,2]
[344933705,1733890264531,-500.0,0.00011094,2]
[344933706,1733890264541,-500.0,0.00011094,2]
[344933707,1733890264550,-500.0,0.00011094,2]
[344933708,1733890264560,-500.0,0.00011094,2]
[344933709,1733890264570,-2097.98,0.00011094,2]
[344933710,1733890264580,-500.0,0.00011094,2]
[344933711,1733890264589,-500.0,0.00011094,2]
[344933712,1733890264599,-382.35644288,0.00011094,2]
[344933713,1733890264609,-500.0,0.00011094,2]
[344933714,1733890264619,-500.0,0.00011094,2]
[344933715,1733890264629,-585.13933103,0.00011094,2]
[344933716,1733890264639,-500.0,0.00011094,2]
[344933717,1733890264649,-581.85473264,0.00011094,2]
[344933718,1733890264659,-500.0,0.00011094,2]
[344933719,1733890264669,-664.34,0.00011094,2]
[344933720,1733890264679,-500.0,0.00011094,2]
[344933721,1733890264688,-500.0,0.00011094,2]
[344933722,1733890264698,-500.0,0.00011094,2]
[344933723,1733890264710,-500.0,0.00011094,2]
[344933724,1733890264725,-500.0,0.00011094,2]
[344933725,1733890264734,-1955.85,0.00011094,2]
[344933726,1733890264743,-512.91,0.00011094,2]
[344933727,1733890264752,-500.0,0.00011094,2]
[344933728,1733890264762,-500.0,0.00011094,2]
[344933729,1733890264771,-613.63,0.00011094,2]
[344933730,1733890264781,-500.0,0.00011094,2]
[344933731,1733890264791,-500.0,0.00011094,2]
[344933732,1733890264801,-9566.21,0.00011094,2]
[344933733,1733890264813,-242.86044062,0.00011094,2]
[344933734,1733890264823,-500.0,0.00011094,2]
[344933735,1733890264834,-500.0,0.00011094,2]
[344933736,1733890264843,-1163.3,0.00011094,2]
[344933737,1733890264853,-1541.64,0.00011094,2]
[344933738,1733890264863,-500.0,0.00011094,2]
[344933739,1733890264874,-500.0,0.00011094,2]
[344933740,1733890264884,-500.0,0.00011094,2]
[344933741,1733890264894,-500.0,0.00011094,2]
[344933742,1733890264904,-2220.99,0.00011094,2]
[344933743,1733890264913,-705.73,0.00011094,2]
[344933744,1733890264923,-783.74,0.00011094,2]
[344933745,1733890264934,-500.0,0.00011094,2]
[344933746,1733890264943,-1151.2,0.00011094,2]
[344933747,1733890264955,-500.0,0.00011094,2]
[344933748,1733890264966,-649.37,0.00011094,2]
[344933749,1733890264975,-500.0,0.00011094,2]
[344933750,1733890264985,-3928.62,0.00011094,2]
[344933751,1733890264994,-669.48,0.00011094,2]
[344933752,1733890265003,-500.0,0.00011094,2]
[344933753,1733890265013,-500.0,0.00011094,2]
[344933754,1733890265023,-2387.14,0.00011094,2]
[344933755,1733890265032,-1583.61,0.00011094,2]
[344933756,1733890265042,-500.0,0.00011094,2]
[344933757,1733890265051,-500.0,0.00011094,2]
[344933758,1733890265060,-500.0,0.00011094,2]
[344933759,1733890265071,-151.0,0.00011094,2]
[344933760,1733890265081,-500.0,0.00011094,2]
[344933761,1733890265091,-1782.13,0.00011094,2]
[344933762,1733890265100,-500.0,0.00011094,2]
[344933763,1733890265110,-1473.99,0.00011094,2]
[344933764,1733890265120,-151.0,0.00011094,2]
[344933765,1733890265130,-500.0,0.00011094,2]
[344933766,1733890265139,-500.0,0.00011094,2]
[344933767,1733890265149,-540.43,0.00011094,2]
[344933768,1733890265159,-644.48,0.00011094,2]
[344933769,1733890265169,-500.0,0.00011094,2]
[344933770,1733890265179,-500.0,0.00011094,2]
[344933771,1733890265188,-452.03909783,0.00011094,2]
[344933772,1733890265198,-3019.06,0.00011094,2]
[344933773,1733890265210,-500.0,0.00011094,2]
[344933774,1733890265220,-2964.01,0.00011094,2]
[344933775,1733890265230,-500.0,0.00011094,2]
[344933776,1733890265240,-500.0,0.00011094,2]
[344933777,1733890265249,-500.0,0.00011094,2]
[344933778,1733890265259,-500.0,0.00011094,2]
[344933779,1733890265272,-500.0,0.00011094,2]
[344933780,1733890265282,-500.0,0.00011094,2]
[344933781,1733890265294,-500.0,0.00011094,2]
[344933782,1733890265303,-500.0,0.00011094,2]
[344933783,1733890265314,-500.0,0.00011094,2]
[344933784,1733890265325,-500.0,0.00011094,2]
[344933785,1733890265335,-666.12,0.00011094,2]
[344933786,1733890265346,-746.42,0.00011094,2]
[344933787,1733890265356,-500.0,0.00011094,2]
[344933788,1733890265366,-500.0,0.00011094,2]
[344933789,1733890265376,-812.53,0.00011094,2]
[344933790,1733890265385,-500.0,0.00011094,2]
[344933791,1733890265395,-758.17,0.00011094,2]
[344933792,1733890265405,-500.0,0.00011094,2]
[344933793,1733890265415,-500.0,0.00011094,2]
[344933794,1733890265425,-500.0,0.00011094,2]
[344933795,1733890265435,-500.0,0.00011094,2]
[344933796,1733890265445,-570.66,0.00011094,2]
[344933797,1733890265457,-959.92,0.00011094,2]
[344933798,1733890265467,-412.75,0.00011094,2]
[344933799,1733890265477,-974.99946496,0.00011094,2]
[344933800,1733890265486,-500.0,0.00011094,2]
[344933801,1733890265496,-500.0,0.00011094,2]
[344933802,1733890265506,-500.0,0.00011094,2]
[344933803,1733890265515,-500.0,0.00011094,2]
[344933804,1733890265524,-500.0,0.00011094,2]
[344933805,1733890265534,-500.0,0.00011094,2]
[344933806,1733890265543,-366.799322,0.00011094,2]
[344933807,1733890265552,-115168.69910388,0.00011095,2]
[344933808,1733890265563,-500.0,0.00011096,2]
[344933809,1733890265572,-179.772251,0.00011096,2]
[344933810,1733890265582,-247.636793,0.00011096,2]
[344933811,1733890265592,-589.73,0.00011096,2]
[344933812,1733890265601,-828.48,0.00011096,2]
[344933813,1733890265611,-1249.05,0.00011096,2]
[344933814,1733890265620,-534.73,0.00011096,2]
[344933815,1733890265630,-500.0,0.00011096,2]
[344933816,1733890265639,-1815.2,0.00011096,2]
[344933817,1733890265649,-500.0,0.00011096,2]
[344933818,1733890265659,-2721.66,0.00011096,2]
[344933819,1733890265668,-2896.18,0.00011096,2]
[344933820,1733890265678,-649.03,0.00011096,2]
[344933821,1733890265688,-979.24,0.00011096,2]
[344933822,1733890265699,-1263.39,0.00011096,2]
[344933823,1733890265710,-1580.46,0.00011096,2]
[344933824,1733890265719,-5178.09,0.00011096,2]
[344933825,1733890265729,-1899.23,0.00011096,2]
[344933826,1733890265739,-5595.96,0.00011096,2]
[344933827,1733890265749,-1031.11,0.00011096,2]
[344933828,1733890265759,-500.0,0.00011096,2]
[344933829,1733890265769,-278.60755401,0.00011096,2]
[344933830,1733890265779,-4260.13,0.00011096,2]
[344933831,1733890265788,-648.96,0.00011096,2]
[344933832,1733890265798,-500.0,0.00011097,2]
[344933833,1733890265807,-247.636793,0.00011097,2]
[344933834,1733890265817,-589.73,0.00011097,2]
[344933835,1733890265826,-589.73,0.00011097,2]
[344933836,1733890265835,-828.48,0.00011097,2]
[344933837,1733890265845,-828.48,0.00011097,2]
[344933838,1733890265855,-534.73,0.00011097,2]
[344933839,1733890265865,-1249.05,0.00011097,2]
[344933840,1733890265875,-534.73,0.00011097,2]
[344933841,1733890265885,-500.0,0.00011097,2]
[344933842,1733890265901,-153.75307739,0.00011097,2]
[344933843,1733890265910,-500.0,0.00011097,2]
[344933844,1733890265920,-500.0,0.00011097,2]
[344933845,1733890265930,-500.0,0.00011097,2]
[344933846,1733890265939,-463.91204515,0.00011097,2]
[344933847,1733890265949,-398.32517273,0.00011097,2]
[344933848,1733890265961,-2220.99,0.00011097,2]
[344933849,1733890265970,-2220.99,0.00011097,2]
[344933850,1733890265980,-2220.99,0.00011097,2]
[344933851,1733890265989,-1815.2,0.00011097,2]
[344933852,1733890265999,-1815.2,0.00011097,2]
[344933853,1733890266009,-500.0,0.00011097,2]
[344933854,1733890266019,-1151.2,0.00011097,2]
[344933855,1733890266029,-1151.2,0.00011097,2]
[344933856,1733890266038,-1151.2,0.00011097,2]
[344933857,1733890266049,-2721.66,0.00011097,2]
[344933858,1733890266059,-3928.62,0.00011097,2]
[344933859,1733890266068,-3928.62,0.00011097,2]
[344933860,1733890266078,-3928.62,0.00011097,2]
[344933861,1733890266088,-500.0,0.00011097,2]
[344933862,1733890266098,-2896.18,0.00011097,2]
[344933863,1733890266107,-500.0,0.00011097,2]
[344933864,1733890266117,-2896.18,0.00011097,2]
[344933865,1733890266126,-500.0,0.00011097,2]
[344933866,1733890266136,-649.03,0.00011097,2]
[344933867,1733890266146,-2387.14,0.00011097,2]
[344933868,1733890266155,-2387.14,0.00011097,2]
[344933869,1733890266165,-2387.14,0.00011097,2]
[344933870,1733890266175,-500.0,0.00011097,2]
[344933871,1733890266184,-500.0,0.00011097,2]
[344933872,1733890266194,-500.0,0.00011097,2]
[344933873,1733890266206,-979.24,0.00011097,2]
[344933874,1733890266216,-1263.39,0.00011097,2]
[344933875,1733890266226,-1263.39,0.00011097,2]
[344933876,1733890266236,-1782.13,0.00011097,2]
[344933877,1733890266245,-1782.13,0.00011097,2]
[344933878,1733890266255,-1782.13,0.00011097,2]
[344933879,1733890266266,-1580.46,0.00011097,2]
[344933880,1733890266278,-500.0,0.00011097,2]
[344933881,1733890266288,-500.0,0.00011097,2]
[344933882,1733890266298,-500.0,0.00011097,2]
[344933883,1733890266308,-644.48,0.00011097,2]
[344933884,1733890266318,-644.48,0.00011097,2]
[344933885,1733890266328,-644.48,0.00011097,2]
[344933886,1733890266338,-5178.09,0.00011097,2]
[344933887,1733890266350,-500.0,0.00011097,2]
[344933888,1733890266361,-500.0,0.00011097,2]
[344933889,1733890266371,-500.0,0.00011097,2]
[344933890,1733890266381,-2964.01,0.00011097,2]
[344933891,1733890266391,-2964.01,0.00011097,2]
[344933892,1733890266401,-2964.01,0.00011097,2]
[344933893,1733890266411,-500.0,0.00011097,2]
[344933894,1733890266421,-500.0,0.00011097,2]
[344933895,1733890266431,-500.0,0.00011097,2]
[344933896,1733890266441,-666.12,0.00011097,2]
[344933897,1733890266450,-666.12,0.00011097,2]
[344933898,1733890266462,-666.12,0.00011097,2]
[344933899,1733890266473,-1899.23,0.00011097,2]
[344933900,1733890266483,-1899.23,0.00011097,2]
[344933901,1733890266493,-758.17,0.00011097,2]
[344933902,1733890266502,-758.17,0.00011097,2]
[344933903,1733890266512,-758.17,0.00011097,2]
[344933904,1733890266522,-5595.96,0.00011097,2]
[344933905,1733890266531,-500.0,0.00011097,2]
[344933906,1733890266540,-500.0,0.00011097,2]
[344933907,1733890266549,-1031.11,0.00011097,2]
[344933908,1733890266559,-500.0,0.00011097,2]
[344933909,1733890266568,-1031.11,0.00011097,2]
[344933910,1733890266577,-1031.11,0.00011097,2]
[344933911,1733890266587,-959.92,0.00011097,2]
[344933912,1733890266597,-959.92,0.00011097,2]
[344933913,1733890266607,-959.92,0.00011097,2]
[344933914,1733890266617,-500.0,0.00011097,2]
[344933915,1733890266627,-585.09739869,0.00011097,2]
[344933916,1733890266635,-4260.13,0.00011097,2]
[344933917,1733890266643,-648.96,0.00011097,2]
[344933918,1733890266653,-648.96,0.00011097,2]
[344933919,1733890266662,-648.96,0.00011097,2]
[344933920,1733890266669,-10892.88346065,0.00011098,2]
[344933921,1733890266678,-300.0,0.00011098,2]
[344933922,1733890266686,-300.0,0.00011098,2]
[344933923,1733890266696,-300.0,0.00011098,2]
[344933924,1733890266708,-300.0,0.00011098,2]
[344933925,1733890266718,-300.0,0.00011098,2]
[344933926,1733890266727,-300.0,0.00011098,2]
[344933927,1733890266735,-300.0,0.00011098,2]
[344933928,1733890266744,-300.0,0.00011098,2]
[344933929,1733890266758,-300.0,0.00011098,2]
[344933930,1733890266767,-300.0,0.00011098,2]
[344933931,1733890266778,-200.0,0.00011098,2]
[344933932,1733890266912,-500.0,0.00011098,2]
[344933933,1733890266936,-500.0,0.00011098,2]
[344933934,1733890266948,-500.0,0.00011098,2]
[344933935,1733890266960,-500.0,0.00011098,2]
[344933936,1733890266970,-164.85300467,0.00011098,2]
[344933937,1733890266980,-500.0,0.00011098,2]
[344933938,1733890266990,-500.0,0.00011098,2]
[344933939,1733890267000,-222.82058517,0.00011098,2]
[344933940,1733890267010,-544.12,0.00011098,2]
[344933941,1733890267020,-544.12,0.00011098,2]
[344933942,1733890267029,-544.12,0.00011098,2]
[344933943,1733890267038,-544.12,0.00011098,2]
[344933944,1733890267048,-544.12,0.00011098,2]
[344933945,1733890267058,-544.12,0.00011098,2]
[344933946,1733890267068,-544.12,0.00011098,2]
[344933947,1733890267078,-544.12,0.00011098,2]
[344933948,1733890267087,-544.12,0.00011098,2]
[344933949,1733890267097,-544.12,0.00011098,2]
[344933950,1733890267106,-544.12,0.00011098,2]
[344933951,1733890267115,-544.12,0.00011098,2]
[344933952,1733890267125,-544.12,0.00011098,2]
[344933953,1733890267135,-544.12,0.00011098,2]
[344933954,1733890267145,-544.26122825,0.00011098,2]
[344933955,1733890267156,-917.02,0.00011098,2]
[344933956,1733890267165,-917.02,0.00011098,2]
[344933957,1733890267175,-917.02,0.00011098,2]
[344933958,1733890267186,-917.02,0.00011098,2]
[344933959,1733890267196,-917.02,0.00011098,2]
[344933960,1733890267208,-917.02,0.00011098,2]
[344933961,1733890267218,-917.02,0.00011098,2]
[344933962,1733890267228,-917.02,0.00011098,2]
[344933963,1733890267237,-917.02,0.00011098,2]
[344933964,1733890267247,-917.02,0.00011098,2]
[344933965,1733890267256,-917.02,0.00011098,2]
[344933966,1733890267268,-917.02,0.00011098,2]
[344933967,1733890267280,-917.02,0.00011098,2]
[344933968,1733890267290,-917.02,0.00011098,2]
[344933969,1733890267300,-917.02605121,0.00011098,2]
[344933970,1733890267311,-500.0,0.00011098,2]
[344933971,1733890267322,-500.0,0.00011098,2]
[344933972,1733890267332,-500.0,0.00011098,2]
[344933973,1733890267343,-500.0,0.00011098,2]
[344933974,1733890267354,-500.0,0.00011098,2]
[344933975,1733890267364,-315.81387812,0.00011098,2]
[344933976,1733890267374,-500.0,0.00011098,2]
[344933977,1733890267384,-500.0,0.00011098,2]
[344933978,1733890267394,-500.0,0.00011098,2]
[344933979,1733890267404,-500.0,0.00011098,2]
[344933980,1733890267414,-556.7056451,0.00011098,2]
[344933981,1733890267423,-755.89,0.00011098,2]
[344933982,1733890267433,-755.89,0.00011098,2]
[344933983,1733890267443,-755.89,0.00011098,2]
[344933984,1733890267453,-755.89,0.00011098,2]
[344933985,1733890267464,-755.89,0.00011098,2]
[344933986,1733890267474,-755.89,0.00011098,2]
[344933987,1733890267484,-755.89,0.00011098,2]
[344933988,1733890267493,-755.89,0.00011098,2]
[344933989,1733890267503,-755.89,0.00011098,2]
[344933990,1733890267512,-755.89,0.00011098,2]
[344933991,1733890267523,-755.89,0.00011098,2]
[344933992,1733890267532,-755.89,0.00011098,2]
[344933993,1733890267542,-755.89,0.00011098,2]
[344933994,1733890267554,-755.89,0.00011098,2]
[344933995,1733890267563,-756.01869169,0.00011098,2]
[344933996,1733890267573,-500.0,0.00011098,2]
[344933997,1733890267583,-500.0,0.00011098,2]
[344933998,1733890267592,-500.0,0.00011098,2]
[344933999,1733890267602,-500.0,0.00011098,2]
[344934000,1733890267612,-500.0,0.00011098,2]
[344934001,1733890267622,-500.0,0.00011098,2]
[344934002,1733890267632,-500.0,0.00011098,2]
[344934003,1733890267642,-500.0,0.00011098,2]
[344934004,1733890267653,-500.0,0.00011098,2]
[344934005,1733890267663,-500.0,0.00011098,2]
[344934006,1733890267673,-500.0,0.00011098,2]
[344934007,1733890267683,-327.56292181,0.00011098,2]
[344934008,1733890267692,-500.0,0.00011098,2]
[344934009,1733890267703,-500.0,0.00011098,2]
[344934010,1733890267714,-500.0,0.00011098,2]
[344934011,1733890267724,-500.0,0.00011098,2]
[344934012,1733890267734,-500.0,0.00011098,2]
[344934013,1733890267744,-500.0,0.00011098,2]
[344934014,1733890267754,-500.0,0.00011098,2]
[344934015,1733890267764,-500.0,0.00011098,2]
[344934016,1733890267773,-500.0,0.00011098,2]
[344934017,1733890267783,-500.0,0.00011098,2]
[344934018,1733890267793,-500.0,0.00011098,2]
[344934019,1733890267803,-500.0,0.00011098,2]
[344934020,1733890267813,-500.0,0.00011098,2]
[344934021,1733890267823,-169.92070971,0.00011098,2]
[344934022,1733890267833,-681.14,0.00011098,2]
[344934023,1733890267842,-681.14,0.00011098,2]
[344934024,1733890267852,-681.14,0.00011098,2]
[344934025,1733890267862,-681.14,0.00011098,2]
[344934026,1733890267872,-681.14,0.00011098,2]
[344934027,1733890267882,-681.14,0.00011098,2]
[344934028,1733890267892,-681.14,0.00011098,2]
[344934029,1733890267901,-681.14,0.00011098,2]
[344934030,1733890267911,-681.14,0.00011098,2]
[344934031,1733890267922,-681.14,0.00011098,2]
[344934032,1733890267932,-681.14,0.00011098,2]
[344934033,1733890267942,-681.14,0.00011098,2]
[344934034,1733890267951,-681.14,0.00011098,2]
[344934035,1733890267964,-681.14,0.00011098,2]
[344934036,1733890267974,-681.28075258,0.00011098,2]
[344934037,1733890267984,-500.0,0.00011098,2]
[344934038,1733890267993,-500.0,0.00011098,2]
[344934039,1733890268003,-500.0,0.00011098,2]
[344934040,1733890268012,-500.0,0.00011098,2]
[344934041,1733890268022,-500.0,0.00011098,2]
[344934042,1733890268033,-426.57020451,0.00011098,2]
[344934043,1733890268043,-500.0,0.00011098,2]
[344934044,1733890268053,-500.0,0.00011098,2]
[344934045,1733890268063,-220.43231201,0.00011098,2]
[344934046,1733890268073,-500.0,0.00011098,2]
[344934047,1733890268082,-351.40545944,0.00011098,2]
[344934048,1733890268092,-500.0,0.00011098,2]
[344934049,1733890268102,-500.0,0.00011098,2]
[344934050,1733890268112,-500.0,0.00011098,2]
[344934051,1733890268122,-500.0,0.00011098,2]